bitfinex-derivatives/quotes_BTCF0:USTF0_20241117
["timestamp","ask_amount","ask_price","bid_price","bid_amount"]
[1731860041012,0.055451,90165.0,90154.0,0.416257]
[1731860041219,0.02833768,90165.0,90154.0,0.416257]
[1731860041408,0.0052,90167.0,90154.0,0.44490168]
[1731860041718,0.0052,90167.0,90154.0,1.94490168]
[1731860041923,0.0052,90167.0,90154.0,2.30233527]
[1731860042423,0.0052,90167.0,90166.0,0.05545]
[1731860042606,0.09552369,90175.0,90166.0,0.3608]
[1731860043008,0.0052,90179.0,90166.0,0.3608]
[1731860043310,0.00011767,90173.0,90172.0,0.055446]
[1731860043809,0.00011767,90173.0,90172.0,0.143406]
[1731860045119,0.00011767,90173.0,90161.0,0.060653]
[1731860045322,0.15097269,90168.0,90162.0,0.4266553]
[1731860045508,0.15097269,90168.0,90162.0,0.416252]
[1731860045709,0.09552369,90168.0,90164.0,0.055451]
[1731860046020,0.09552369,90168.0,90162.0,0.3608]
[1731860046522,0.00011767,90173.0,90162.0,0.7216]
[1731860046819,0.00011767,90173.0,90171.0,0.416247]
[1731860051325,0.00011767,90173.0,90172.0,0.09552369]
[1731860051824,0.00011767,90173.0,90172.0,0.19388582]
[1731860052023,0.00011767,90173.0,90172.0,0.22678582]
[1731860052323,0.00011767,90173.0,90172.0,0.22678586]
[1731860052522,0.0052,90185.0,90184.0,0.055439]
[1731860052722,0.0052,90197.0,90196.0,0.055432]
[1731860052922,0.02805462,90199.0,90197.0,0.055431]
[1731860053121,0.02805462,90199.0,90197.0,0.142911]
[1731860053527,0.02805462,90199.0,90198.0,9.212e-05]
[1731860054523,0.00010168,90200.0,90198.0,0.08757212]
[1731860054829,0.00010168,90200.0,90198.0,0.14300212]
[1731860055214,0.00010168,90200.0,90198.0,0.05552212]
[1731860057131,0.00010168,90200.0,90199.0,0.05543]
[1731860063820,0.00010168,90200.0,90199.0,0.06582879]
[1731860064019,0.00010168,90200.0,90199.0,0.06582877]
[1731860064220,0.00010168,90200.0,90199.0,0.05543]
[1731860064431,0.00010168,90200.0,90199.0,0.0658288]
[1731860064929,0.0679,90210.0,90199.0,0.3429988]
[1731860064930,0.0052,90210.0,90199.0,0.3429988]
[1731860065125,0.0052,90217.0,90216.0,0.055419]
[1731860065327,0.0638,90221.0,90209.0,0.3608]
[1731860065629,0.0638,90221.0,90220.0,0.055417]
[1731860065928,0.06391029,90221.0,90220.0,0.055417]
[1731860067226,0.06391029,90221.0,90219.0,0.3608]
[1731860067424,0.055417,90220.0,90213.0,0.08748]
[1731860067624,0.06391029,90221.0,90213.0,0.08748]
[1731860067829,0.06391029,90221.0,90209.0,0.3608]
[1731860068133,0.055423,90211.0,90207.0,0.0052]
[1731860068336,0.055423,90210.0,90205.0,0.055426]
[1731860068830,0.055421,90214.0,90200.0,0.055429]
[1731860069023,0.055423,90210.0,90205.0,0.055426]
[1731860070017,0.055424,90209.0,90205.0,0.055426]
[1731860071447,0.3608,90215.0,90199.0,0.45472]
[1731860071731,0.0052,90217.0,90216.0,0.055419]
[1731860072034,0.06391029,90221.0,90220.0,0.055417]
[1731860075621,0.00011029,90221.0,90220.0,0.055417]
[1731860076233,0.00166328,90229.0,90228.0,0.055412]
[1731860076424,0.00166328,90229.0,90228.0,0.503692]
[1731860076621,0.00166328,90229.0,90228.0,0.51408714]
[1731860076828,0.00166328,90229.0,90228.0,2.01408714]
[1731860077245,0.0308,90237.0,90228.0,1.95867514]
[1731860077425,0.0308,90237.0,90236.0,0.416207]
[1731860077938,0.00013138,90239.0,90236.0,0.3608]
[1731860078129,0.00013138,90239.0,90237.0,0.055406]
[1731860080129,0.00013138,90239.0,90236.0,0.3608]
[1731860080934,0.00013138,90239.0,90233.0,0.055409]
[1731860081136,0.09552369,90236.0,90228.0,0.417412]
[1731860081338,0.09552369,90236.0,90228.0,0.3608]
[1731860081339,0.055409,90232.0,90228.0,0.3608]
[1731860081636,0.00013138,90239.0,90228.0,0.3608]
[1731860082035,0.00013138,90239.0,90235.0,0.055407]
[1731860083336,0.00013138,90239.0,90228.0,0.3608]
[1731860083537,0.00013138,90239.0,90237.0,0.055406]
[1731860089446,0.09565507,90239.0,90228.0,0.3608]
[1731860089645,0.055409,90233.0,90228.0,0.416212]
[1731860089845,0.09565507,90239.0,90228.0,0.3608]
[1731860090149,0.055409,90232.0,90228.0,0.3608]
[1731860090454,0.055409,90232.0,90220.0,0.0052]
[1731860090455,0.3608,90229.0,90220.0,0.060617]
[1731860090751,0.055412,90228.0,90223.0,0.055415]
[1731860091350,0.055412,90228.0,90224.0,0.055414]
[1731860092954,0.055412,90228.0,90218.0,0.3608]
[1731860092955,0.3608,90229.0,90218.0,0.3608]
[1731860093149,0.3608,90229.0,90226.0,0.055413]
[1731860093346,0.3608,90229.0,90221.0,0.055416]
[1731860093547,0.0947,90231.0,90223.0,0.055415]
[1731860093548,0.055412,90228.0,90223.0,0.055415]
[1731860093747,0.0947,90231.0,90218.0,0.3608]
[1731860094148,0.0947,90231.0,90226.0,0.055413]
[1731860094347,0.15011,90231.0,90226.0,0.055413]
[1731860094555,0.055411,90230.0,90226.0,0.055413]
[1731860095253,0.055411,90230.0,90221.0,0.055416]
[1731860095552,0.055411,90230.0,90222.0,0.055416]
[1731860096141,0.055411,90230.0,90217.0,0.19864095]
[1731860096142,0.055414,90225.0,90217.0,0.25405895]
[1731860096448,0.055414,90224.0,90218.0,0.055418]
[1731860096851,0.0947,90231.0,90214.0,0.0052]
[1731860096852,0.055417,90220.0,90214.0,0.20384095]
[1731860097042,0.055417,90220.0,90213.0,0.416221]
[1731860097043,0.13215514,90225.0,90213.0,0.055421]
[1731860097240,0.055418,90219.0,90213.0,0.055421]
[1731860098052,0.13215514,90225.0,90213.0,0.055421]
[1731860098358,0.3608,90227.0,90213.0,0.055421]
[1731860098359,0.13215514,90224.0,90213.0,0.055421]
[1731860098545,0.3608,90218.0,90209.0,0.00686275]
[1731860098839,0.3608,90218.0,90209.0,0.00166275]
[1731860099256,0.055419,90216.0,90212.0,0.055421]
[1731860099857,0.05542,90216.0,90210.0,0.055423]
[1731860100247,0.055423,90210.0,90209.0,0.00166275]
[1731860100756,0.149523,90210.0,90209.0,0.00166275]
[1731860101854,0.149523,90210.0,90203.0,0.0052]
[1731860101855,0.055427,90204.0,90203.0,0.0052]
[1731860102039,0.05543,90199.0,90198.0,9.212e-05]
[1731860102448,0.38803,90199.0,90198.0,9.212e-05]
[1731860102948,0.52004732,90199.0,90198.0,9.212e-05]
[1731860103152,0.05543,90199.0,90198.0,9.212e-05]
[1731860103357,0.38803,90199.0,90198.0,9.212e-05]
[1731860104356,0.41605052,90199.0,90198.0,9.212e-05]
[1731860104948,0.17033052,90199.0,90198.0,9.212e-05]
[1731860105146,0.14231,90199.0,90198.0,9.212e-05]
[1731860105354,0.47491,90199.0,90198.0,9.212e-05]
[1731860106763,0.05543,90199.0,90198.0,9.212e-05]
[1731860112060,0.47502764,90199.0,90191.0,0.0052]
[1731860112264,0.055437,90187.0,90186.0,0.0052]
[1731860112563,0.055437,90187.0,90180.0,0.00166327]
[1731860112564,0.055438,90185.0,90184.0,0.055438]
[1731860113550,0.055436,90189.0,90188.0,0.055435]
[1731860113863,0.4568837,90192.0,90191.0,0.055435]
[1731860113864,0.44828001,90192.0,90191.0,0.055435]
[1731860114064,0.3608,90192.0,90191.0,0.055435]
[1731860116153,0.416234,90192.0,90187.0,0.055437]
[1731860116961,0.055437,90187.0,90183.0,0.0318]
[1731860117265,0.3608,90192.0,90185.0,0.055438]
[1731860117463,0.055435,90190.0,90187.0,0.055437]
[1731860118053,0.3608,90192.0,90183.0,0.0318]
[1731860118054,0.055436,90189.0,90183.0,0.0318]
[1731860118460,0.055436,90189.0,90184.0,0.055439]
[1731860118668,0.45632369,90192.0,90183.0,0.0318]
[1731860118965,0.055441,90181.0,90180.0,0.00166327]
[1731860121063,0.08304078,90181.0,90180.0,0.00166327]
[1731860123369,0.0305,90191.0,90180.0,0.00166327]
[1731860123673,0.36136001,90192.0,90189.0,0.055435]
[1731860123855,0.3608,90192.0,90189.0,0.055435]
[1731860124055,0.3608,90192.0,90190.0,0.055435]
[1731860124261,7.764e-05,90199.0,90196.0,0.055431]
[1731860124558,7.764e-05,90199.0,90198.0,0.05543]
[1731860125763,7.764e-05,90199.0,90198.0,0.41623]
[1731860126266,1e-08,90199.0,90198.0,0.41623]
[1731860126467,1e-08,90199.0,90198.0,0.84614895]
[1731860126674,0.00166353,90206.0,90198.0,0.84614895]
[1731860126861,0.00166353,90206.0,90205.0,0.055426]
[1731860130475,0.00166353,90206.0,90205.0,0.08404865]
[1731860131062,0.00011623,90207.0,90205.0,0.08404865]
[1731860131263,0.00011623,90207.0,90206.0,0.57013608]
[1731860131467,0.00011623,90207.0,90206.0,0.57013591]
[1731860131667,0.00011623,90207.0,90206.0,0.37119789]
[1731860131865,0.00011623,90207.0,90206.0,0.57009277]
[1731860132065,0.00011623,90207.0,90206.0,0.37119789]
[1731860132467,0.00011623,90207.0,90206.0,0.70375789]
[1731860132775,0.0052,90217.0,90216.0,0.055419]
[1731860132979,0.0052,90217.0,90208.0,0.09552369]
[1731860132980,0.18726682,90226.0,90220.0,0.055416]
[1731860133174,0.055414,90226.0,90220.0,0.055416]
[1731860133571,8.321e-05,90225.0,90220.0,0.055416]
[1731860133878,8.321e-05,90225.0,90224.0,0.055414]
[1731860135880,8.321e-05,90225.0,90224.0,0.087014]
[1731860137279,0.0052,90234.0,90233.0,0.055409]
[1731860137474,0.001663,90235.0,90233.0,0.416209]
[1731860138978,0.001663,90235.0,90233.0,0.3608]
[1731860139182,0.001663,90235.0,90225.0,0.0052]
[1731860139183,0.055413,90227.0,90225.0,0.0052]
[1731860139480,0.09552369,90226.0,90217.0,0.060618]
[1731860139679,0.09552369,90226.0,90220.0,0.055417]
[1731860140175,0.366,90231.0,90220.0,0.055417]
[1731860140176,0.36656001,90231.0,90220.0,0.055417]
[1731860140381,0.3608,90231.0,90220.0,0.055417]
[1731860140777,0.055413,90226.0,90220.0,0.055417]
[1731860141481,0.055413,90226.0,90216.0,0.0052]
[1731860141676,0.055413,90226.0,90221.0,0.055416]
[1731860141872,0.41621,90231.0,90226.0,0.055413]
[1731860142078,0.41621,90231.0,90216.0,0.0052]
[1731860142079,0.0622,90234.0,90216.0,0.0052]
[1731860142275,0.0622,90234.0,90224.0,0.055414]
[1731860142473,0.0622,90234.0,90226.0,0.055413]
[1731860142474,0.05541,90232.0,90226.0,0.055413]
[1731860142674,0.05541,90232.0,90216.0,0.0052]
[1731860143077,0.05541,90232.0,90226.0,0.055413]
[1731860143380,0.0308,90234.0,90229.0,0.055411]
[1731860143885,0.0308,90234.0,90230.0,0.05541]
[1731860144484,0.02947696,90235.0,90234.0,0.055408]
[1731860144485,0.001663,90235.0,90234.0,0.055408]
[1731860147385,8.537e-05,90236.0,90234.0,0.055408]
[1731860147598,8.537e-05,90236.0,90235.0,0.00010942]
[1731860148397,1e-08,90243.0,90235.0,0.42986394]
[1731860148688,0.0308,90265.0,90242.0,0.45632369]
[1731860148886,0.0308,90265.0,90262.0,0.055391]
[1731860149188,0.0308,90265.0,90263.0,0.15091369]
[1731860149394,0.03091264,90265.0,90263.0,0.15091369]
[1731860149784,0.00011264,90265.0,90263.0,0.15091369]
[1731860150381,0.00011264,90265.0,90263.0,0.23775369]
[1731860151181,0.00011264,90265.0,90259.0,0.3608]
[1731860151182,0.09552369,90264.0,90259.0,0.3608]
[1731860151383,0.09552369,90264.0,90255.0,0.08684]
[1731860151384,0.055393,90259.0,90255.0,0.08684]
[1731860151585,0.0325,90258.0,90255.0,0.08684]
[1731860151893,0.09552369,90257.0,90245.0,1.5012]
[1731860152099,0.3608,90250.0,90236.0,0.08684]
[1731860152287,0.3608,90250.0,90238.0,0.09552369]
[1731860152288,0.0319,90249.0,90238.0,0.09552369]
[1731860152480,0.055403,90243.0,90236.0,0.08684]
[1731860152890,0.0319,90249.0,90236.0,0.08684]
[1731860153191,0.055403,90244.0,90237.0,0.055406]
[1731860153381,0.0319,90249.0,90236.0,0.08684]
[1731860153589,0.0319,90249.0,90248.0,0.3608]
[1731860153792,0.0325,90258.0,90257.0,0.055394]
[1731860153982,0.3608,90268.0,90257.0,0.3608]
[1731860154298,0.0651,90275.0,90264.0,0.05539]
[1731860154485,0.055384,90274.0,90264.0,0.05539]
[1731860155887,0.055387,90270.0,90264.0,0.05539]
[1731860156787,0.0651,90275.0,90264.0,0.05539]
[1731860157392,0.055384,90274.0,90264.0,0.05539]
[1731860157599,0.055384,90273.0,90264.0,0.05539]
[1731860158490,0.05704836,90271.0,90264.0,0.05539]
[1731860159095,0.055389,90266.0,90258.0,0.055393]
[1731860159497,0.055389,90266.0,90259.0,0.055393]
[1731860159695,0.05550164,90265.0,90259.0,0.055393]
[1731860160202,0.0304,90264.0,90259.0,0.055393]
[1731860160387,0.0304,90264.0,90257.0,0.3608]
[1731860160591,0.055393,90259.0,90257.0,0.3608]
[1731860160902,0.0304,90264.0,90257.0,0.3608]
[1731860161101,0.00011264,90265.0,90262.0,0.055391]
[1731860161294,0.00011264,90265.0,90257.0,0.3608]
[1731860161494,0.00011264,90265.0,90263.0,0.05539]
[1731860162099,0.00011264,90265.0,90261.0,0.055391]
[1731860162399,0.00011264,90265.0,90257.0,0.3608]
[1731860162583,0.05539,90264.0,90258.0,0.055393]
[1731860162791,0.05539,90264.0,90261.0,0.055392]
[1731860163294,0.00011264,90265.0,90257.0,0.3608]
[1731860163501,0.00011264,90265.0,90263.0,0.05539]
[1731860163694,0.00011264,90265.0,90264.0,0.3608]
[1731860164394,0.0651,90275.0,90272.0,0.055385]
[1731860164592,0.0651,90275.0,90274.0,0.3608]
[1731860164991,0.0651,90275.0,90272.0,0.055385]
[1731860165489,8.693e-05,90274.0,90272.0,0.055385]
[1731860166102,8.693e-05,90274.0,90268.0,0.08684]
[1731860166296,8.693e-05,90274.0,90273.0,0.055384]
[1731860169388,8.693e-05,90274.0,90273.0,0.416184]
[1731860169994,0.05547093,90274.0,90273.0,0.3608]
[1731860170293,0.055387,90268.0,90265.0,0.055389]
[1731860170694,0.0329,90273.0,90267.0,0.055388]
[1731860170998,0.0329,90273.0,90268.0,0.055387]
[1731860171697,0.0329,90273.0,90271.0,0.055385]
[1731860171898,0.0329,90273.0,90272.0,0.3608]
[1731860172689,8.693e-05,90274.0,90273.0,0.055384]
[1731860174509,8.693e-05,90274.0,90272.0,0.3608]
[1731860174704,8.693e-05,90274.0,90263.0,0.0868]
[1731860174705,8.693e-05,90274.0,90267.0,0.055388]
[1731860175011,0.055386,90270.0,90267.0,0.055388]
[1731860175398,0.0325,90273.0,90269.0,0.055387]
[1731860175706,0.0325,90273.0,90270.0,0.055386]
[1731860175905,0.0325,90273.0,90271.0,0.055385]
[1731860176105,0.055385,90272.0,90266.0,0.055388]
[1731860176314,0.055385,90272.0,90268.0,0.055387]
[1731860176613,0.055385,90272.0,90269.0,0.055387]
[1731860177202,0.13175069,90271.0,90263.0,0.3608]
[1731860177401,0.055389,90265.0,90262.0,0.055391]
[1731860177613,0.13220028,90265.0,90255.0,0.0954749]
[1731860177896,0.19218322,90272.0,90264.0,0.05539]
[1731860177897,0.13220028,90266.0,90264.0,0.05539]
[1731860178208,8.693e-05,90274.0,90264.0,0.41619]
[1731860178409,8.693e-05,90274.0,90269.0,0.055387]
[1731860178410,0.13232441,90271.0,90269.0,0.055387]
[1731860178604,0.13234633,90272.0,90265.0,0.055389]
[1731860178911,0.13234633,90272.0,90271.0,0.1508599]
[1731860179111,0.13234176,90272.0,90271.0,0.1508599]
[1731860179501,0.13234176,90272.0,90271.0,0.0954749]
[1731860179705,0.13234176,90272.0,90267.0,0.055388]
[1731860179905,0.05547093,90274.0,90268.0,0.055387]
[1731860180208,0.13234095,90271.0,90268.0,0.055387]
[1731860180414,0.13234095,90271.0,90269.0,0.055387]
[1731860180611,8.693e-05,90274.0,90269.0,0.055387]
[1731860180907,0.13235726,90270.0,90269.0,0.055387]
[1731860181097,8.693e-05,90274.0,90269.0,0.055387]
[1731860181098,0.13235475,90271.0,90269.0,0.055387]
[1731860181302,0.13235325,90270.0,90269.0,0.055386]
[1731860181505,8.693e-05,90274.0,90272.0,0.055385]
[1731860181506,0.13244018,90274.0,90272.0,0.055385]
[1731860181706,0.13236076,90273.0,90272.0,0.055385]
[1731860183114,0.29806055,90273.0,90272.0,0.055385]
[1731860183815,0.13236076,90273.0,90272.0,0.254775]
[1731860184214,0.29806257,90273.0,90272.0,0.055385]
[1731860184409,0.29806257,90273.0,90272.0,0.25478826]
[1731860184714,0.29806257,90273.0,90269.0,0.055387]
[1731860184908,0.29806257,90273.0,90272.0,0.1994078]
[1731860185306,0.055386,90270.0,90263.0,0.19940901]
[1731860185613,0.055391,90262.0,90258.0,0.055393]
[1731860185817,0.3608,90264.0,90254.0,0.055396]
[1731860185818,0.055394,90257.0,90254.0,0.055396]
[1731860186120,0.08598792,90256.0,90254.0,0.055396]
[1731860186311,0.0321,90256.0,90254.0,0.055396]
[1731860186918,0.0321,90256.0,90253.0,0.00166188]
[1731860187109,0.055396,90254.0,90253.0,0.05705888]
[1731860187308,0.0321,90256.0,90255.0,0.055395]
[1731860189122,0.19923792,90261.0,90260.0,0.055392]
[1731860189311,0.19923792,90261.0,90260.0,0.1508669]
[1731860189312,0.19867791,90261.0,90260.0,0.1508669]
[1731860190019,0.19867791,90261.0,90260.0,0.16125875]
[1731860190315,0.19867791,90261.0,90260.0,0.68184256]
[1731860190620,0.19867791,90261.0,90260.0,0.42674159]
[1731860190916,0.19867791,90261.0,90260.0,0.68183967]
[1731860191113,0.19867791,90261.0,90260.0,0.42674161]
[1731860191316,0.19867791,90261.0,90260.0,0.41634976]
[1731860191512,0.13236609,90272.0,90260.0,0.0954749]
[1731860191820,0.13236609,90272.0,90265.0,0.3608]
[1731860192008,0.13236609,90272.0,90271.0,0.055385]
[1731860193120,0.13236609,90272.0,90267.0,0.055388]
[1731860193527,0.13236609,90272.0,90268.0,0.055387]
[1731860193816,0.13236609,90272.0,90265.0,0.55992628]
[1731860193817,0.1323869,90271.0,90265.0,0.3608]
[1731860194123,8.693e-05,90274.0,90265.0,0.3608]
[1731860194321,0.1323876,90271.0,90265.0,0.3608]
[1731860194518,0.1323876,90271.0,90269.0,0.055387]
[1731860194720,0.13239781,90272.0,90271.0,0.055385]
[1731860194913,8.693e-05,90274.0,90271.0,0.055385]
[1731860195116,0.13241161,90272.0,90271.0,0.055385]
[1731860195513,0.13241161,90273.0,90271.0,0.055385]
[1731860196221,0.13249854,90274.0,90269.0,0.19913802]
[1731860196417,0.13249854,90274.0,90272.0,0.055385]
[1731860197118,0.13241826,90273.0,90272.0,0.055385]
[1731860197324,8.693e-05,90274.0,90272.0,0.25451758]
[1731860197630,8.693e-05,90274.0,90272.0,0.055385]
[1731860199122,8.693e-05,90274.0,90273.0,0.19910164]
[1731860199313,8.693e-05,90274.0,90273.0,0.25448564]
[1731860200219,8.693e-05,90274.0,90273.0,0.055384]
[1731860201624,8.693e-05,90274.0,90273.0,0.416184]
[1731860206621,8.693e-05,90274.0,90273.0,0.3608]
[1731860206928,0.05547093,90274.0,90273.0,0.3608]
[1731860207323,0.055386,90271.0,90266.0,0.055388]
[1731860207616,0.05539,90265.0,90262.0,0.055391]
[1731860207826,0.3608,90268.0,90261.0,0.19902361]
[1731860208014,0.13235464,90266.0,90256.0,0.19902361]
[1731860208220,0.3608,90268.0,90256.0,0.19902361]
[1731860208221,0.3608,90257.0,90256.0,0.055395]
[1731860208722,0.055394,90258.0,90256.0,0.055395]
[1731860209426,0.055394,90258.0,90257.0,0.055394]
[1731860210515,0.055395,90255.0,90254.0,0.055396]
[1731860212733,0.055396,90254.0,90253.0,0.00166188]
[1731860213126,0.18775064,90254.0,90253.0,0.00166188]
[1731860213433,0.055396,90254.0,90253.0,0.00166188]
[1731860213627,0.18775064,90254.0,90253.0,0.00166188]
[1731860213828,0.13235464,90254.0,90253.0,0.00166188]
[1731860214030,0.13235464,90255.0,90253.0,0.00166188]
[1731860214332,0.21944864,90257.0,90253.0,0.00166188]
[1731860214532,0.0317,90257.0,90255.0,0.055395]
[1731860214737,0.41679201,90260.0,90258.0,0.055393]
[1731860214923,0.49315464,90260.0,90253.0,0.00166188]
[1731860215124,0.055396,90255.0,90253.0,0.05705788]
[1731860217122,0.055396,90255.0,90253.0,0.00166188]
[1731860217336,0.055396,90255.0,90254.0,0.055396]
[1731860217835,0.13235464,90259.0,90258.0,0.055393]
[1731860218334,0.18774764,90259.0,90258.0,0.055393]
[1731860219431,0.055393,90259.0,90258.0,0.055393]
[1731860220734,0.00064,90260.0,90259.0,0.055393]
[1731860221040,0.0632,90270.0,90269.0,0.055387]
[1731860221239,0.118586,90270.0,90269.0,0.055387]
[1731860221634,0.0632,90270.0,90269.0,0.055387]
[1731860223332,0.055389,90265.0,90262.0,0.05539]
[1731860223640,0.055389,90265.0,90264.0,0.05539]
[1731860224438,0.055388,90267.0,90266.0,0.055388]
[1731860227135,0.0632,90270.0,90269.0,0.055387]
[1731860227539,8.693e-05,90274.0,90262.0,0.0954749]
[1731860227729,8.693e-05,90274.0,90271.0,0.055385]
[1731860227934,8.693e-05,90274.0,90266.0,0.055388]
[1731860228132,0.055385,90272.0,90269.0,0.055386]
[1731860228336,8.693e-05,90274.0,90262.0,0.0954749]
[1731860228537,8.693e-05,90274.0,90273.0,0.055384]
[1731860233445,8.693e-05,90274.0,90272.0,0.0868]
[1731860233633,0.05547093,90274.0,90272.0,0.0868]
[1731860233837,8.693e-05,90274.0,90265.0,0.55982361]
[1731860234141,0.055387,90269.0,90265.0,0.055389]
[1731860234347,0.055387,90269.0,90268.0,0.055387]
[1731860234941,0.05547093,90274.0,90269.0,0.055387]
[1731860235153,8.693e-05,90274.0,90269.0,0.055387]
[1731860235344,0.055385,90272.0,90264.0,0.28578361]
[1731860235649,8.693e-05,90274.0,90264.0,0.28578361]
[1731860235853,8.693e-05,90274.0,90273.0,0.055384]
[1731860238644,8.693e-05,90274.0,90273.0,0.416184]
[1731860240646,8.693e-05,90274.0,90273.0,0.47515509]
[1731860241750,0.13235464,90285.0,90283.0,0.055378]
[1731860241942,0.13216744,90284.0,90275.0,0.08676]
[1731860242147,0.13216744,90284.0,90283.0,0.055378]
[1731860242746,0.13225221,90284.0,90283.0,0.055378]
[1731860243151,8.477e-05,90284.0,90283.0,0.055378]
[1731860245452,0.13225221,90284.0,90283.0,0.416178]
[1731860245653,8.477e-05,90284.0,90283.0,0.416178]
[1731860246756,0.3608,90299.0,90297.0,0.05537]
[1731860246757,0.49296744,90299.0,90297.0,0.05537]
[1731860247149,0.3608,90299.0,90297.0,0.05537]
[1731860247352,0.49296744,90299.0,90297.0,0.05537]
[1731860247857,0.0001169,90298.0,90297.0,0.05537]
[1731860249546,0.0001169,90298.0,90297.0,0.05549623]
[1731860250567,0.0001169,90298.0,90297.0,0.15097113]
[1731860250865,0.1,90300.0,90299.0,0.055368]
[1731860251064,0.1,90300.0,90299.0,0.2541208]
[1731860251368,0.1,90300.0,90299.0,0.25411708]
[1731860251554,0.1,90300.0,90299.0,0.055368]
[1731860251755,0.1,90300.0,90299.0,0.0657552]
[1731860251950,0.00012689,90308.0,90307.0,0.055363]
[1731860252154,0.00012689,90308.0,90303.0,0.055366]
[1731860252853,0.00012689,90308.0,90297.0,0.02843578]
[1731860253061,0.00012689,90308.0,90307.0,0.055363]
[1731860255265,0.00012689,90308.0,90297.0,0.2271751]
[1731860255266,0.36092689,90308.0,90297.0,0.00012623]
[1731860255455,0.055367,90301.0,90297.0,0.00012623]
[1731860255650,0.38841804,90308.0,90297.0,0.00012623]
[1731860255858,0.416169,90298.0,90286.0,0.0052]
[1731860256058,0.416169,90298.0,90284.0,0.00166129]
[1731860256059,0.055377,90285.0,90284.0,0.00166129]
[1731860256258,0.3608,90290.0,90288.0,0.055375]
[1731860256566,0.033,90289.0,90288.0,0.055375]
[1731860257555,0.3938,90289.0,90288.0,0.055375]
[1731860258760,0.033,90289.0,90288.0,0.055375]
[1731860260071,0.055375,90288.0,90284.0,0.00166129]
[1731860261457,0.3938,90289.0,90284.0,0.00166129]
[1731860261660,0.055376,90287.0,90284.0,0.00166129]
[1731860262176,0.055377,90285.0,90284.0,0.00166129]
[1731860262366,0.055379,90281.0,90280.0,0.00010557]
[1731860262573,0.416179,90281.0,90280.0,0.00010557]
[1731860264171,0.3608,90281.0,90280.0,0.00010557]
[1731860266979,0.3608,90281.0,90280.0,0.05548557]
[1731860268562,0.3608,90281.0,90280.0,0.00010557]
[1731860270169,0.3608,90281.0,90280.0,0.05548557]
[1731860272281,0.055379,90282.0,90280.0,0.05548557]
[1731860277789,0.02816705,90284.0,90280.0,0.05548557]
[1731860277977,0.055379,90281.0,90280.0,0.05548557]
[1731860278280,0.055379,90281.0,90280.0,0.00010557]
[1731860279078,0.416179,90281.0,90280.0,0.00010557]
[1731860280275,0.055379,90281.0,90280.0,0.00010557]
[1731860280689,0.055379,90281.0,90280.0,0.05548557]
[1731860280983,0.3608,90285.0,90284.0,0.055378]
[1731860281189,0.416177,90285.0,90284.0,0.055378]
[1731860281973,0.3608,90285.0,90284.0,0.055378]
[1731860283090,0.36232105,90285.0,90284.0,0.055378]
[1731860284179,0.49448849,90285.0,90284.0,0.055378]
[1731860284590,0.36232105,90285.0,90284.0,0.055378]
[1731860285284,0.00152105,90285.0,90284.0,0.055378]
[1731860285489,0.00152105,90285.0,90284.0,0.35110047]
[1731860285883,0.00152105,90285.0,90284.0,0.085678]
[1731860286078,0.00152105,90285.0,90284.0,0.35110047]
[1731860287480,0.00152105,90285.0,90284.0,0.35115744]
[1731860288494,0.00152105,90285.0,90284.0,0.085678]
[1731860293692,0.00152105,90285.0,90284.0,0.172398]
[1731860296797,0.00152105,90285.0,90284.0,0.085678]
[1731860296990,0.00152105,90285.0,90284.0,0.172398]
[1731860298683,0.00152105,90285.0,90284.0,0.142098]
[1731860300303,0.00152105,90285.0,90284.0,0.20473172]
[1731860302290,0.13230519,90295.0,90284.0,0.54426744]
[1731860302495,0.13230519,90296.0,90294.0,0.11800472]
[1731860302800,0.0308,90302.0,90298.0,0.055369]
[1731860302801,0.13230519,90300.0,90298.0,0.055369]
[1731860302988,0.0308,90302.0,90301.0,0.055367]
[1731860303192,0.0308,90302.0,90301.0,0.11800072]
[1731860303395,0.00166157,90304.0,90303.0,0.055366]
[1731860303698,0.00012689,90308.0,90307.0,0.055363]
[1731860303893,0.00012689,90308.0,90307.0,0.11799672]
[1731860304197,0.00012689,90308.0,90307.0,0.055363]
[1731860305497,0.00012689,90308.0,90307.0,0.416163]
[1731860306090,0.13230519,90319.0,90307.0,0.748363]
[1731860306295,0.13230519,90322.0,90316.0,0.3608]
[1731860306586,0.13230519,90324.0,90321.0,0.09539695]
[1731860306794,0.16320519,90329.0,90321.0,0.09539695]
[1731860306995,0.0309,90329.0,90328.0,0.055351]
[1731860307305,0.03102195,90329.0,90328.0,0.15074795]
[1731860307506,0.13218439,90350.0,90330.0,0.055349]
[1731860307799,0.0311,90355.0,90353.0,0.055335]
[1731860308001,0.0311,90355.0,90354.0,0.3608]
[1731860308395,0.0311,90355.0,90354.0,0.36088975]
[1731860308597,0.03119799,90355.0,90354.0,0.36088975]
[1731860309200,0.03119799,90355.0,90339.0,0.055344]
[1731860309400,0.09539695,90349.0,90338.0,0.08668]
[1731860309701,0.03119799,90355.0,90347.0,0.055339]
[1731860309702,0.031,90348.0,90347.0,0.055339]
[1731860309887,0.031,90348.0,90347.0,0.416139]
[1731860310089,0.03119799,90355.0,90354.0,0.055335]
[1731860318705,0.03119799,90355.0,90351.0,0.08664]
[1731860319009,0.03119799,90355.0,90353.0,0.055335]
[1731860319500,0.12659494,90355.0,90347.0,0.00012488]
[1731860319805,0.416139,90348.0,90344.0,0.08664]
[1731860320007,0.0309,90347.0,90345.0,0.05534]
[1731860320812,0.086239,90347.0,90345.0,0.05534]
[1731860321396,0.05534,90346.0,90345.0,0.05534]
[1731860321613,0.055342,90342.0,90333.0,0.055347]
[1731860321809,0.05933778,90347.0,90333.0,0.055347]
[1731860321810,0.055346,90335.0,90333.0,0.055347]
[1731860322005,0.3608,90339.0,90328.0,0.0016604]
[1731860322304,0.3608,90339.0,90319.0,0.0052]
[1731860322305,0.055353,90324.0,90322.0,0.055354]
[1731860322510,0.0309,90323.0,90322.0,0.055354]
[1731860326511,0.055345,90338.0,90321.0,0.09539695]
[1731860326818,0.153145,90337.0,90332.0,0.055348]
[1731860327006,0.0978,90337.0,90332.0,0.055348]
[1731860327206,0.055346,90336.0,90332.0,0.055348]
[1731860327510,0.055346,90336.0,90324.0,0.3608]